[Event "40th Eastman Open Ghent"]
[Site "Ghent"]
[Date "2017.07.17"]
[Round "5"]
[White "Abolianin, Arthur"]
[Black "Harakis, Alexis M"]
[Result "0-1"]
[ECO "A00"]
[WhiteElo "2329"]
[BlackElo "2284"]
[Annotator "NA"]
[PlyCount "70"]
[EventDate "2017.??.??"]
[EventType "swiss"]
[EventCountry "BEL"]
[SourceTitle "playchess.com"]
[Source "ChessBase"]
[SourceQuality "1"]
[TimeControl "7200"]

1. g3 {[%emt 0:04:06]} d5 {[%emt 0:02:19]} 2. Bg2 {[%emt 0:00:05]} e5 {[%emt 0:01:18]} 3. Nf3 {[%emt 0:00:16]} e4 {[%emt 0:00:45]} 4. Nd4 {[%emt 0:00:02]} Bc5 {[%emt 0:03:19]} 5. Nb3 {[%emt 0:03:49]} Bb6 {[%emt 0:00:05]} 6. d3 {[%emt 0:00:12]} Nf6 {[%emt 0:06:03]} 7. O-O {[%emt 0:15:33]} O-O {[%emt 0:01:08]} 8. Nc3 {[%emt 0:00:20]} exd3 {[%emt 0:02:05]} 9. cxd3 {[%emt 0:00:02]} a5 {[%emt 0:03:10]} 10. Bg5 {[%emt 0:06:14]} c6 {[%emt 0:05:12]} 11. e4 {[%emt 0:00:36]} a4 {[%emt 0:07:25]} 12. Nd2 {[%emt 0:09:49]} a3 {[%emt 0:01:52]} 13. exd5 {[%emt 0:01:21]} axb2 {[%emt 0:00:29]} 14. Rb1 {[%emt 0:00:02]} h6 {[%emt 0:15:51]} 15. Bxf6 {[%emt 0:02:45]} Qxf6 {[%emt 0:00:05]} 16. Qb3 {[%emt 0:07:00]} Bd4 {[%emt 0:05:53]} 17. Ne2 $11 {[%emt 0:01:10]} cxd5 {[%emt 0:05:52]} 18. Nxd4 {[%emt 0:02:54]} Qxd4 {[%emt 0:00:05]} 19. Bxd5 {[%emt 0:09:21]} Ra5 {[%emt 0:05:00]} 20. Be4 {[%emt 0:03:22]} Qa7 {[%emt 0:05:12]} 21. Rxb2 {[%emt 0:00:35]} Ra3 {[%emt 0:00:31]} 22. Qc2 {[%emt 0:02:17]} Nc6 {[%emt 0:00:39]} 23. Nc4 {[%emt 0:01:23]} Nd4 {[%emt 0:00:31]} 24. Qb1 {[%emt 0:00:31]} Ra6 {[%emt 0:01:30]} 25. Nb6 {[%emt 0:06:30]} Be6 {[%emt 0:04:03]} 26. a4 {[%emt 0:00:26]} f5 {[%emt 0:03:30]} 27. Bg2 {[%emt 0:00:57]} f4 {[%emt 0:00:42]} 28. Be4 {[%emt 0:07:28]} f3 {[%emt 0:00:42]} 29. Nd5 {[%emt 0:05:29]} Bh3 {[%emt 0:02:44]} 30. Qa2 {[%emt 0:08:02]} Ne2+ {[%emt 0:05:37]} 31. Rxe2 {[%emt 0:00:06]} fxe2 {[%emt 0:00:03]} 32. Ne7+ {[%emt 0:00:02]} Kh8 {[%emt 0:00:06]} 33. Qxe2 {[%emt 0:01:21]} Bxf1 {[%emt 0:00:13]} 34. Kxf1 {[%emt 0:00:17]} b5 {[%emt 0:01:13]} 35. Ng6+ {[%emt 0:00:07]} Rxg6 {[%emt 0:00:03]} 0-1

[Event "40th Eastman Open Ghent"]
[Site "Ghent"]
[Date "2017.07.17"]
[Round "5"]
[White "Lammens, Tim"]
[Black "Van Beers, Eddy"]
[Result "1-0"]
[ECO "B20"]
[WhiteElo "2304"]
[BlackElo "2312"]
[Annotator "NA"]
[PlyCount "149"]
[EventDate "2017.??.??"]
[EventType "swiss"]
[EventCountry "BEL"]
[SourceTitle "playchess.com"]
[Source "ChessBase"]
[SourceQuality "1"]
[TimeControl "7200"]

1. e4 {[%emt 0:07:40]} c5 {[%emt 0:00:15]} 2. Ne2 {[%emt 0:00:31]} d6 {[%emt 0:00:57]} 3. g3 {[%emt 0:00:10]} g6 {[%emt 0:00:44]} 4. Bg2 {[%emt 0:00:08]} Bg7 {[%emt 0:00:04]} 5. c3 {[%emt 0:00:59]} Nc6 {[%emt 0:03:34]} 6. d4 {[%emt 0:00:19] B20: Sicilian: Unusual White 2nd moves} Bg4 {[%emt 0:13:26]} 7. f3 {[%emt 0:02:01]} Bd7 {[%emt 0:00:04]} 8. Be3 {[%emt 0:01:00]} cxd4 {[%emt 0:02:20]} 9. cxd4 {[%emt 0:00:01]} Nf6 {[%emt 0:01:30]} 10. Nbc3 {[%emt 0:00:23]} O-O {[%emt 0:01:42]} 11. O-O {[%emt 0:00:44]} a6 {[%emt 0:00:54]} 12. Qd2 {[%emt 0:04:16]} b5 {[%emt 0:09:32]} 13. h3 $146 {[%emt 0:05:03]} ({Predecessor:} 13. b3 b4 14. Nd5 Nxd5 15. exd5 Na7 16. Qxb4 {0-1 (27) Pogosian,V (2153)-Papp,G (2551) Plovdiv 2012}) 13... Rb8 {[%emt 0:23:16]} 14. b3 {[%emt 0:06:18]} b4 {[%emt 0:08:57]} 15. Na4 {[%emt 0:02:16]} Na5 {[%emt 0:04:17]} 16. Nb2 $1 {[%emt 0:00:07]} Bb5 {[%emt 0:00:05]} 17. Nd3 {[%emt 0:04:58]} Nc6 {[%emt 0:05:05]} 18. Rfc1 {[%emt 0:09:18]} a5 {[%emt 0:03:21]} 19. a4 {[%emt 0:02:49]} bxa3 {[%emt 0:02:17]} 20. Rxa3 {[%emt 0:03:25]} Nd7 {[%emt 0:02:13]} 21. d5 {[%emt 0:07:15]} Nb4 {[%emt 0:07:29]} 22. Ndf4 {[%emt 0:01:55]} Nc5 {[%emt 0:05:35]} 23. Nd4 $14 {[%emt 0:01:18]} Bd7 {[%emt 0:01:25]} 24. h4 {[%emt 0:06:56]} e5 {[%emt 0:07:29]} 25. dxe6 {[%emt 0:00:10]} fxe6 {[%emt 0:00:03]} 26. Nde2 {[%emt 0:22:30]} Qc7 {[%emt 0:06:14]} 27. h5 {[%emt 0:02:21]} g5 {[%emt 0:01:41]} 28. h6 {[%emt 0:00:13]} Bxh6 {[%emt 0:00:14]} 29. Nh5 {[%emt 0:01:44]} Be8 {[%emt 0:00:33]} 30. Bxg5 {[%emt 0:00:32]} Bxg5 {[%emt 0:00:01]} 31. Qxg5+ {[%emt 0:00:08]} Bg6 {[%emt 0:00:06]} 32. Nhf4 {[%emt 0:05:18]} Qf7 {[%emt 0:00:01]} 33. Rd1 {[%emt 0:02:14]} Rb6 {[%emt 0:00:53]} 34. Nd4 {[%emt 0:04:36]} e5 {[%emt 0:00:09]} 35. Nf5 {[%emt 0:00:20]} Kh8 {[%emt 0:00:25]} 36. Nxd6 {[%emt 0:03:48]} Qf6 {[%emt 0:00:01]} 37. Nxg6+ {[%emt 0:00:52]} hxg6 {[%emt 0:00:02]} 38. Qxf6+ Rxf6 39. Nc4 {[%emt 0:00:52]} Nc2 {[%emt 0:00:07]} 40. Rxa5 {[%emt 0:00:08]} Nxb3 {[%emt 0:00:05]} 41. Ra8+ {[%emt 0:00:04]} Kg7 {[%emt 0:00:05]} 42. Nxb6 Rxb6 {[%emt 0:00:01]} 43. Re8 {[%emt 0:01:34]} Kf6 {[%emt 0:00:17]} 44. Red8 {[%emt 0:00:04]} Nbd4 {[%emt 0:00:04]} 45. f4 {[%emt 0:00:08]} Ne2+ {[%emt 0:00:27]} 46. Kf2 {[%emt 0:00:05]} Ncd4 {[%emt 0:00:13]} 47. fxe5+ {[%emt 0:00:05]} Kxe5 {[%emt 0:00:01]} 48. Rd5+ {[%emt 0:00:01]} Kf6 {[%emt 0:00:02]} 49. R5xd4 {[%emt 0:00:01]} Nxd4 {[%emt 0:00:00]} 50. Rxd4 {[%emt 0:00:01]} Ke5 {[%emt 0:00:02]} 51. Rd5+ {[%emt 0:00:01]} Kf6 {[%emt 0:00:00]} 52. Bf3 {[%emt 0:00:06]} Rb4 {[%emt 0:00:05]} 53. Ke3 {[%emt 0:00:02]} g5 {[%emt 0:00:01]} 54. Ra5 {[%emt 0:00:16]} Rb3+ {[%emt 0:00:02]} 55. Kf2 {[%emt 0:00:03]} Rc3 {[%emt 0:00:06]} 56. e5+ {[%emt 0:00:10]} Kf5 {[%emt 0:00:06]} 57. e6+ {[%emt 0:00:07]} Kxe6 58. Rxg5 {[%emt 0:00:01]} Kf6 {[%emt 0:00:02]} 59. Ra5 {[%emt 0:00:02]} Rb3 {[%emt 0:00:01]} 60. g4 {[%emt 0:00:03]} Rc3 {[%emt 0:00:04]} 61. Kg3 {[%emt 0:00:05]} Rb3 {[%emt 0:00:00]} 62. Kf4 {[%emt 0:00:02]} Rb4+ {[%emt 0:00:02]} 63. Be4 {[%emt 0:00:00]} Rd4 {[%emt 0:00:00]} 64. Ra6+ {[%emt 0:00:01]} Kg7 {[%emt 0:00:01]} 65. g5 {[%emt 0:00:03]} Rb4 {[%emt 0:00:03]} 66. Ra7+ {[%emt 0:00:01]} Kf8 {[%emt 0:00:01]} 67. Ke5 {[%emt 0:00:03]} Rb6 {[%emt 0:00:02]} 68. Bd5 {[%emt 0:00:03]} Rg6 {[%emt 0:00:02]} 69. Kf5 {[%emt 0:00:03]} Rd6 {[%emt 0:00:01]} 70. Be6 {[%emt 0:00:03]} Rd1 {[%emt 0:00:08]} 71. Kf6 {[%emt 0:00:02]} Rf1+ {[%emt 0:00:04]} 72. Bf5 {[%emt 0:00:01]} Re1 {[%emt 0:00:04]} 73. Ra8+ {[%emt 0:00:02]} Re8 {[%emt 0:00:00]} 74. Rxe8+ {[%emt 0:00:02]} Kxe8 {[%emt 0:00:02]} 75. g6 {[%emt 0:00:01]} 1-0

[Event "40th Eastman Open Ghent"]
[Site "Ghent"]
[Date "2017.07.17"]
[Round "5"]
[White "Van Mechelen, Jan"]
[Black "Davey, Mark"]
[Result "1-0"]
[ECO "B30"]
[WhiteElo "2247"]
[BlackElo "1990"]
[Annotator "NA"]
[PlyCount "103"]
[EventDate "2017.??.??"]
[EventType "swiss"]
[EventCountry "BEL"]
[SourceTitle "playchess.com"]
[Source "ChessBase"]
[SourceQuality "1"]
[TimeControl "7200"]

1. e4 {[%emt 0:00:06]} c5 {[%emt 0:00:06]} 2. Nf3 {[%emt 0:00:18]} Nc6 {[%emt 0:00:05]} 3. Bb5 {[%emt 0:00:37]} d6 {[%emt 0:06:15]} 4. d4 {[%emt 0:00:39]} cxd4 {[%emt 0:00:04]} 5. Qxd4 {[%emt 0:00:09]} Bd7 {[%emt 0:05:06]} 6. Bxc6 {[%emt 0:00:13]} Bxc6 {[%emt 0:00:11]} 7. Nc3 {[%emt 0:00:16]} Nf6 {[%emt 0:01:01]} 8. Bg5 {[%emt 0:00:16]} h6 {[%emt 0:09:32]} 9. Bxf6 {[%emt 0:13:23] B53: Sicilian: 2...d6: Lines with Qxd4} gxf6 {[%emt 0:01:08]} 10. O-O-O {[%emt 0:00:14]} Qa5 {[%emt 0:02:43]} (10... Rg8 11. Rhg1 Qa5 12. Qd3 a6 13. Nd4 e6 14. Kb1 Bd7 15. f4 b5 16. e5 f5 17. exd6 {1-0 (24) Balogh,C (2605)-Likavsky,T (2498) Austria 2009}) 11. Kb1 {[%emt 0:00:59]} Rg8 {[%emt 0:09:14]} 12. Nd5 $146 {[%emt 0:04:53]} ({Predecessor:} 12. Nh4 e6 13. Rhe1 Qe5 14. Qe3 Qg5 15. g3 Qxe3 16. Rxe3 O-O-O {1-0 (57) Escobar Forero,A (2466)-Martinez Ramirez,E (2306) Barbera del Valles 2013}) 12... Bg7 {[%emt 0:09:12]} 13. Qd3 {[%emt 0:06:28]} Rc8 {[%emt 0:03:00]} 14. Rhe1 {[%emt 0:03:55]} Qc5 {[%emt 0:12:37]} 15. Nd4 {[%emt 0:06:28]} Bxd5 {[%emt 0:11:39]} 16. exd5 {[%emt 0:00:26]} Bf8 {[%emt 0:00:50]} 17. Nf5 {[%emt 0:19:37]} Rxg2 {[%emt 0:03:27]} 18. Nxe7 {[%emt 0:05:39]} Bxe7 {[%emt 0:07:37]} 19. Qe4 {[%emt 0:00:27]} Qxc2+ {[%emt 0:01:52]} 20. Qxc2 {[%emt 0:00:09]} Rxc2 {[%emt 0:00:04]} 21. Kxc2 {[%emt 0:00:13]} Rxh2 {[%emt 0:00:14]} 22. Re2 $16 {[%emt 0:00:28]} Kd7 {[%emt 0:00:09]} 23. Rde1 {[%emt 0:00:17]} Bd8 {[%emt 0:00:21]} 24. Rg1 {[%emt 0:00:13]} Rh5 {[%emt 0:02:15]} 25. Rg7 {[%emt 0:02:48]} Rxd5 {[%emt 0:00:19]} 26. Rxf7+ {[%emt 0:00:11]} Kc6 {[%emt 0:00:12]} 27. Rf8 {[%emt 0:00:20]} Rc5+ {[%emt 0:04:02]} 28. Kb1 {[%emt 0:01:09]} Kd7 {[%emt 0:03:29]} 29. Rf7+ {[%emt 0:00:44]} Kc6 {[%emt 0:00:37]} 30. Re8 {[%emt 0:00:25]} Bb6 {[%emt 0:00:50]} 31. Rxf6 {[%emt 0:07:11]} Rh5 {[%emt 0:00:27]} 32. Ree6 {[%emt 0:01:55]} Bc5 {[%emt 0:01:27]} 33. a3 {[%emt 0:02:18]} Rh2 {[%emt 0:04:47]} 34. b4 {[%emt 0:10:40]} Bxf2 {[%emt 0:00:38]} 35. Rxd6+ {[%emt 0:00:08]} Kb5 {[%emt 0:01:13]} 36. Rxh6 {[%emt 0:01:07]} Rg2 {[%emt 0:02:15]} 37. Rd2 {[%emt 0:04:47]} Rg1+ {[%emt 0:00:10]} 38. Kb2 {[%emt 0:00:22]} Be3 {[%emt 0:01:08]} 39. Rh5+ {[%emt 0:00:15]} Kc6 {[%emt 0:03:29]} 40. Rc2+ {[%emt 0:03:09]} Kd6 {[%emt 0:00:38]} 41. Kb3 {[%emt 0:01:36]} Rb1+ {[%emt 0:01:10]} 42. Kc4 {[%emt 0:00:13]} Ra1 {[%emt 0:00:09]} 43. Rc3 {[%emt 0:00:21]} Bb6 {[%emt 0:00:23]} 44. Rg3 {[%emt 0:00:56]} Rc1+ {[%emt 0:00:13]} 45. Kb5 {[%emt 0:00:30]} Bd8 {[%emt 0:00:09]} 46. Rg6+ {[%emt 0:00:07]} Kd7 {[%emt 0:00:10]} 47. Rd5+ {[%emt 0:01:15]} Kc7 {[%emt 0:00:31]} 48. Rg7+ {[%emt 0:00:23]} Kc8 {[%emt 0:00:02]} 49. Rg8 {[%emt 0:00:15]} a6+ {[%emt 0:00:14]} 50. Ka4 {[%emt 0:00:06]} Rc3 {[%emt 0:00:48]} 51. Rdxd8+ {[%emt 0:00:12]} Kc7 {[%emt 0:00:06]} 52. Rc8+ {[%emt 0:00:12]} 1-0

[Event "40th Eastman Open Ghent"]
[Site "Ghent"]
[Date "2017.07.17"]
[Round "5"]
[White "Stone, Andrew M"]
[Black "Van Herck, Marcel"]
[Result "1/2-1/2"]
[ECO "A37"]
[WhiteElo "2153"]
[BlackElo "2156"]
[Annotator "NA"]
[PlyCount "73"]
[EventDate "2017.??.??"]
[EventType "swiss"]
[EventCountry "BEL"]
[SourceTitle "playchess.com"]
[Source "ChessBase"]
[SourceQuality "1"]
[TimeControl "7200"]

1. c4 {[%emt 0:00:04]} c5 {[%emt 0:02:59]} 2. g3 {[%emt 0:00:05]} Nc6 {[%emt 0:00:26]} 3. Bg2 {[%emt 0:00:08]} g6 {[%emt 0:00:23]} 4. Nc3 {[%emt 0:00:13]} Bg7 {[%emt 0:00:19]} 5. Nf3 {[%emt 0:00:21]} Nf6 {[%emt 0:01:41]} 6. d4 {[%emt 0:00:27]} cxd4 {[%emt 0:00:26]} 7. Nxd4 {[%emt 0:00:14]} Ng4 {[%emt 0:06:08]} 8. Nb3 {[%emt 0:18:45]} O-O {[%emt 0:05:43]} 9. c5 {[%emt 0:04:42]} f5 {[%emt 0:28:20]} 10. O-O {[%emt 0:02:20]} b6 {[%emt 0:00:55]} 11. cxb6 {[%emt 0:09:56]} axb6 {[%emt 0:08:36]} 12. h3 {[%emt 0:11:10]} Nf6 {[%emt 0:05:28]} 13. e4 {[%emt 0:02:19]} fxe4 {[%emt 0:07:13]} 14. Nxe4 {[%emt 0:00:22]} Nxe4 {[%emt 0:01:57]} 15. Bxe4 {[%emt 0:04:17]} Ba6 {[%emt 0:00:56]} 16. Re1 {[%emt 0:01:05]} Rc8 {[%emt 0:03:39]} 17. h4 {[%emt 0:03:26]} e6 {[%emt 0:03:25]} 18. Rb1 {[%emt 0:19:06]} d5 {[%emt 0:03:35]} 19. Bg2 {[%emt 0:06:43]} Qf6 {[%emt 0:00:18]} 20. Bf4 {[%emt 0:01:22]} Kh8 {[%emt 0:02:42]} 21. Qd2 {[%emt 0:03:35]} Bc4 {[%emt 0:07:40]} 22. Rbd1 {[%emt 0:08:46]} Rce8 {[%emt 0:04:36]} 23. Be3 {[%emt 0:04:40]} b5 {[%emt 0:06:14]} 24. Bc5 {[%emt 0:01:42]} Rf7 {[%emt 0:00:18]} 25. Nd4 {[%emt 0:00:37]} Nxd4 {[%emt 0:00:09]} 26. Bxd4 {[%emt 0:00:03]} Qxd4 {[%emt 0:00:09]} 27. Qxd4 {[%emt 0:00:02]} Bxd4 {[%emt 0:00:06]} 28. Rxd4 {[%emt 0:00:06]} Bxa2 {[%emt 0:00:10]} 29. Rb4 {[%emt 0:02:14]} Bc4 {[%emt 0:03:57]} 30. b3 {[%emt 0:00:10]} Bd3 {[%emt 0:00:31]} 31. Bxd5 {[%emt 0:04:59]} Ref8 {[%emt 0:01:10]} 32. Be4 {[%emt 0:00:06]} Bxe4 {[%emt 0:00:35]} 33. Rexe4 {[%emt 0:00:51]} Rxf2 {[%emt 0:00:08]} 34. Rxe6 {[%emt 0:00:03]} Rf1+ {[%emt 0:00:42]} 35. Kg2 {[%emt 0:00:01]} R8f2+ {[%emt 0:00:10]} 36. Kh3 {[%emt 0:00:01]} h5 {[%emt 0:00:11]} 37. g4 {[%emt 0:00:02]} 1/2-1/2

[Event "40th Eastman Open Ghent"]
[Site "Ghent"]
[Date "2017.07.17"]
[Round "5"]
[White "Vinke, Maarten"]
[Black "Cordts, Ingo"]
[Result "0-1"]
[ECO "C24"]
[WhiteElo "2127"]
[BlackElo "2259"]
[Annotator "NA"]
[PlyCount "42"]
[EventDate "2017.??.??"]
[EventType "swiss"]
[EventCountry "BEL"]
[SourceTitle "playchess.com"]
[Source "ChessBase"]
[SourceQuality "1"]
[TimeControl "7200"]

1. e4 {[%emt 0:08:22]} e5 {[%emt 0:00:13]} 2. Bc4 {[%emt 0:00:27]} Nf6 {[%emt 0:00:10]} 3. d4 {[%emt 0:00:07]} exd4 {[%emt 0:00:43]} 4. Nf3 {[%emt 0:00:05]} Bb4+ {[%emt 0:01:08]} 5. c3 {[%emt 0:00:55]} dxc3 {[%emt 0:00:06]} 6. bxc3 {[%emt 0:00:11]} Bc5 {[%emt 0:01:56]} 7. O-O {[%emt 0:03:09]} d5 {[%emt 0:01:52]} 8. exd5 {[%emt 0:01:44]} O-O {[%emt 0:00:28]} 9. Bb3 {[%emt 0:03:17]} Bg4 {[%emt 0:05:44]} 10. Bb2 {[%emt 0:05:44]} Qd6 {[%emt 0:11:51]} 11. c4 {[%emt 0:04:22]} Nbd7 {[%emt 0:04:03]} 12. Nbd2 {[%emt 0:12:59]} Rfe8 {[%emt 0:08:24]} 13. Re1 {[%emt 0:03:35]} Rxe1+ {[%emt 0:02:42]} 14. Qxe1 {[%emt 0:02:36]} Bxf3 {[%emt 0:04:00]} 15. Nxf3 {[%emt 0:06:24] [#]} Ng4 $19 {[%emt 0:13:18]} 16. Qc3 {[%emt 0:04:47]} Ndf6 {[%emt 0:06:49]} 17. Bc2 {[%emt 0:05:35]} Bxf2+ {[%emt 0:03:04]} 18. Kf1 {[%emt 0:00:31]} Bc5 {[%emt 0:01:30]} 19. h3 {[%emt 0:04:26]} Ne3+ {[%emt 0:03:49]} 20. Ke2 {[%emt 0:00:09]} Re8 {[%emt 0:00:44]} 21. Bxh7+ {[%emt 0:01:30]} Kxh7 {[%emt 0:01:23]} 0-1

[Event "40th Eastman Open Ghent"]
[Site "Ghent"]
[Date "2017.07.17"]
[Round "5"]
[White "van Akkeren, Arno"]
[Black "Maes, Thomas"]
[Result "1-0"]
[ECO "B08"]
[WhiteElo "2086"]
[BlackElo "2201"]
[Annotator "NA"]
[PlyCount "31"]
[EventDate "2017.??.??"]
[EventType "swiss"]
[EventCountry "BEL"]
[SourceTitle "playchess.com"]
[Source "ChessBase"]
[SourceQuality "1"]
[TimeControl "7200"]

1. e4 {[%emt 0:00:03]} d6 {[%emt 0:00:07]} 2. d4 {[%emt 0:00:04]} Nf6 {[%emt 0:00:07]} 3. Nc3 {[%emt 0:00:08]} g6 {[%emt 0:00:07]} 4. Nf3 {[%emt 0:00:27]} Bg7 {[%emt 0:00:08]} 5. Bd3 {[%emt 0:01:35]} O-O {[%emt 0:00:56]} 6. O-O {[%emt 0:00:06]} Nc6 {[%emt 0:01:54]} 7. h3 {[%emt 0:01:50]} e6 {[%emt 0:03:56]} 8. Bg5 {[%emt 0:08:53]} h6 {[%emt 0:06:51]} 9. Bh4 {[%emt 0:07:26]} g5 {[%emt 0:15:15]} 10. Bg3 {[%emt 0:00:13]} Ne7 {[%emt 0:03:01]} 11. e5 {[%emt 0:04:49]} Nfd5 {[%emt 0:07:23]} 12. Ne4 {[%emt 0:11:32]} Nf5 {[%emt 0:12:57]} 13. Bh2 {[%emt 0:05:18]} Nf4 $16 {[%emt 0:05:29]} (13... b6 $14) 14. g4 {[%emt 0:06:38]} Ne7 {[%emt 0:15:44]} 15. Bxf4 {[%emt 0:05:56]} gxf4 {[%emt 0:00:08]} 16. g5 {[%emt 0:05:30]} 1-0

[Event "40th Eastman Open Ghent"]
[Site "Ghent"]
[Date "2017.07.18"]
[Round "7"]
[White "Michielsen, Joost"]
[Black "Cordts, Ingo"]
[Result "1/2-1/2"]
[ECO "C96"]
[WhiteElo "2409"]
[BlackElo "2259"]
[Annotator "ChessBase"]
[PlyCount "46"]
[EventDate "2017.??.??"]
[EventType "swiss"]
[EventCountry "BEL"]
[SourceTitle "playchess.com"]
[Source "ChessBase"]
[SourceQuality "1"]
[TimeControl "7200"]

1. e4 {[%emt 0:03:23]} e5 {[%emt 0:00:07]} 2. Nf3 {[%emt 0:00:05]} Nc6 {[%emt 0:00:01]} 3. Bb5 {[%emt 0:00:08]} a6 {[%emt 0:00:03]} 4. Ba4 {[%emt 0:00:05]} Nf6 {[%emt 0:00:08]} 5. O-O {[%emt 0:00:06]} Be7 {[%emt 0:01:30]} 6. Re1 {[%emt 0:00:24]} b5 {[%emt 0:00:19]} 7. Bb3 {[%emt 0:00:06]} d6 {[%emt 0:00:16]} 8. c3 {[%emt 0:00:25]} O-O {[%emt 0:00:33]} 9. h3 {[%emt 0:00:16]} Na5 {[%emt 0:00:29]} 10. Bc2 {[%emt 0:00:05]} c5 {[%emt 0:00:22]} 11. d4 {[%emt 0:00:04]} Nd7 {[%emt 0:00:35]} 12. Nbd2 {[%emt 0:01:26]} exd4 {[%emt 0:01:20]} 13. cxd4 {[%emt 0:00:08]} Nc6 {[%emt 0:00:27]} 14. d5 {[%emt 0:00:26]} Nce5 {[%emt 0:00:14]} 15. Nh2 {[%emt 0:00:56]} Ng6 {[%emt 0:06:12]} 16. Ndf1 {[%emt 0:01:21]} Bg5 {[%emt 0:07:05]} 17. Be3 {[%emt 0:07:43]} Nb6 {[%emt 0:05:05]} 18. b3 {[%emt 0:00:59]} f5 {[%emt 0:06:32]} 19. Bxg5 {[%emt 0:14:57]} Qxg5 {[%emt 0:00:03]} 20. Nf3 {[%emt 0:00:20]} Qf6 {[%emt 0:02:03]} 21. exf5 {[%emt 0:00:56]} Bxf5 {[%emt 0:01:04]} 22. Bxf5 {[%emt 0:01:34]} Qxf5 {[%emt 0:00:02]} 23. Ne3 {[%emt 0:08:03]} Qh5 1/2-1/2

[Event "40th Eastman Open Ghent"]
[Site "Ghent"]
[Date "2017.07.18"]
[Round "7"]
[White "Abolianin, Arthur"]
[Black "Faybish, Nimrod"]
[Result "1-0"]
[ECO "A00"]
[WhiteElo "2329"]
[BlackElo "2178"]
[Annotator "NA"]
[PlyCount "99"]
[EventDate "2017.??.??"]
[EventType "swiss"]
[EventCountry "BEL"]
[SourceTitle "playchess.com"]
[Source "ChessBase"]
[SourceQuality "1"]
[TimeControl "7200"]

1. g3 {[%emt 0:04:13]} e5 {[%emt 0:03:18]} 2. Bg2 {[%emt 0:00:02]} d5 {[%emt 0:01:11]} 3. Nf3 {[%emt 0:00:03]} Bd6 {[%emt 0:00:15]} 4. O-O {[%emt 0:00:44]} Nf6 {[%emt 0:00:56]} 5. d3 {[%emt 0:00:51]} O-O {[%emt 0:00:46]} 6. c4 {[%emt 0:02:05]} c6 {[%emt 0:00:38] A00: Irregular Openings} 7. Bg5 {[%emt 0:00:28]} (7. cxd5 cxd5 8. Bg5 Nbd7 9. Nc3 h6 10. Bd2 a6 11. Rc1 Re8 12. Nh4 d4 13. Ne4 Nxe4 14. Bxe4 {1-0 (44) Mamedov,R (2650)-Fressinet,L (2700) Huaian 2016}) 7... Be6 {[%emt 0:11:13]} 8. Qb3 $146 {[%emt 0:01:44]} ({Predecessor:} 8. Nc3 Nbd7 9. Nd2 h6 10. cxd5 cxd5 11. Bxf6 Nxf6 {0-1 (54) Pinales Roussel,G (1821)-Lugo Roldan,J (1762) Armenia 2013}) 8... Qb6 {[%emt 0:10:07]} 9. Bxf6 {[%emt 0:01:35]} Qxb3 {[%emt 0:01:04]} 10. axb3 {[%emt 0:00:02]} gxf6 {[%emt 0:00:09]} 11. Nc3 {[%emt 0:10:59]} d4 {[%emt 0:02:13]} 12. Ne4 {[%emt 0:00:03]} Be7 {[%emt 0:00:12]} 13. Ne1 {[%emt 0:00:04]} Nd7 {[%emt 0:12:53]} 14. Nc2 {[%emt 0:00:23]} Bg4 {[%emt 0:12:04]} 15. f3 {[%emt 0:02:11]} Be6 {[%emt 0:04:00]} 16. b4 {[%emt 0:00:37]} Rfc8 {[%emt 0:08:30]} 17. f4 {[%emt 0:02:12]} f5 {[%emt 0:08:55]} 18. Nd2 {[%emt 0:04:48]} f6 {[%emt 0:00:24]} 19. Bh3 {[%emt 0:01:44]} Rf8 {[%emt 0:03:39]} 20. Nf3 $16 {[%emt 0:00:12]} a6 {[%emt 0:05:21]} 21. Nh4 {[%emt 0:01:02]} Rae8 {[%emt 0:01:51]} 22. Bxf5 {[%emt 0:00:42]} Bd6 {[%emt 0:01:36]} 23. Bxe6+ {[%emt 0:00:36]} Rxe6 {[%emt 0:00:02]} 24. f5 {[%emt 0:00:28]} Re7 {[%emt 0:00:16]} 25. Nf3 {[%emt 0:00:03]} c5 {[%emt 0:02:41]} 26. bxc5 {[%emt 0:00:09]} Bxc5 {[%emt 0:02:10]} 27. b4 {[%emt 0:00:49]} e4 {[%emt 0:01:05]} 28. Nfxd4 {[%emt 0:00:50]} exd3 {[%emt 0:00:18]} 29. exd3 {[%emt 0:00:08]} Bxd4+ {[%emt 0:03:47]} 30. Nxd4 {[%emt 0:00:02]} Re3 {[%emt 0:00:24]} 31. Rf3 {[%emt 0:01:12]} Rfe8 {[%emt 0:02:18]} 32. Raf1 {[%emt 0:05:15]} Rxf3 {[%emt 0:01:25]} 33. Nxf3 {[%emt 0:14:24]} Re3 {[%emt 0:00:08]} 34. d4 {[%emt 0:00:15]} Rb3 {[%emt 0:00:02]} 35. Kf2 {[%emt 0:01:00]} Rxb4 {[%emt 0:00:19]} 36. c5 {[%emt 0:00:42]} Rb3 {[%emt 0:00:33]} 37. Rc1 {[%emt 0:00:44]} Kf7 {[%emt 0:00:50]} 38. d5 {[%emt 0:01:25]} Ke7 {[%emt 0:02:53]} 39. c6 {[%emt 0:00:22]} bxc6 {[%emt 0:00:16]} 40. dxc6 {[%emt 0:01:51]} Nb6 {[%emt 0:00:01]} 41. Re1+ {[%emt 0:01:38]} Kf7 {[%emt 0:00:15]} 42. Ra1 {[%emt 0:01:25]} Rc3 {[%emt 0:01:11]} 43. Nd4 {[%emt 0:00:11]} Rc4 {[%emt 0:00:52]} 44. Rxa6 {[%emt 0:00:09]} Nd5 {[%emt 0:00:32]} 45. Ra7+ {[%emt 0:00:31]} Kg8 {[%emt 0:00:28]} 46. Ne6 {[%emt 0:00:06]} h5 {[%emt 0:01:38]} 47. Rg7+ {[%emt 0:02:30]} Kh8 {[%emt 0:00:08]} 48. c7 {[%emt 0:01:36]} Rc3 {[%emt 0:00:02]} 49. Rd7 Nb6 50. Rd6 {[%emt 0:00:39]} 1-0

[Event "40th Eastman Open Ghent"]
[Site "Ghent"]
[Date "2017.07.18"]
[Round "7"]
[White "Lammens, Tim"]
[Black "Voogt, Bob"]
[Result "1-0"]
[ECO "A04"]
[WhiteElo "2304"]
[BlackElo "2150"]
[Annotator "ChessBase"]
[PlyCount "35"]
[EventDate "2017.??.??"]
[EventType "swiss"]
[EventCountry "BEL"]
[SourceTitle "playchess.com"]
[Source "ChessBase"]
[SourceQuality "1"]
[TimeControl "7200"]

1. Nf3 {[%emt 0:07:32]} f5 {[%emt 0:01:13]} 2. d3 {[%emt 0:00:23]} e6 {[%emt 0:01:51]} 3. e4 {[%emt 0:00:26]} fxe4 {[%emt 0:00:14]} 4. dxe4 {[%emt 0:00:05]} b6 {[%emt 0:01:15]} 5. Bd3 {[%emt 0:04:46]} Nc6 {[%emt 0:02:44]} 6. e5 {[%emt 0:05:40]} Qe7 {[%emt 0:10:12]} 7. Nc3 {[%emt 0:05:07]} Bb7 {[%emt 0:01:19]} 8. Qe2 {[%emt 0:06:22]} Nb4 {[%emt 0:07:29]} 9. Be4 {[%emt 0:02:46]} Nd5 {[%emt 0:04:25]} 10. Nxd5 {[%emt 0:03:01]} exd5 {[%emt 0:02:12]} 11. Bd3 {[%emt 0:00:23]} g6 {[%emt 0:01:16]} 12. Bg5 {[%emt 0:05:16]} Qf7 {[%emt 0:05:29]} 13. Nd4 {[%emt 0:02:39]} Be7 {[%emt 0:01:22]} 14. e6 {[%emt 0:04:23]} dxe6 {[%emt 0:00:12]} 15. Bb5+ {[%emt 0:01:14]} c6 {[%emt 0:04:44]} 16. Nxc6 {[%emt 0:01:20]} Kf8 {[%emt 0:01:50]} 17. Nxe7 {[%emt 0:05:01]} Nxe7 {[%emt 0:00:24]} 18. Qe5 {[%emt 0:00:16] Ke8} 1-0